[Event "Titled Tuesday Blitz March 15 Early 2022"]
[White "San, Thit Lwin"]
[Black "Foisor, Sabina-Francesca"]
[WhiteFideId "13001272"]
[BlackFideId "1212915"]
[WhiteElo "2232"]
[BlackElo "2243"]
[Result "1-0"]
[Round "02"]
[TimeControl "180+1"]
[Date "2022.03.15"]
[WhiteClock "0:00:29"]
[BlackClock "0:00:07"]

1. Nf3 {[%clk 0:03:00]}  d5 {[%clk 0:02:59]} 2. c4 {[%clk 0:03:00]}  d4 {[%clk 0:02:58]} 3. d3 {[%clk 0:03:00]}  Nf6 {[%clk 0:02:55]} 4. g3 {[%clk 0:03:01]}  c5 {[%clk 0:02:55]} 5. Bg2 {[%clk 0:03:00]}  Nc6 {[%clk 0:02:55]} 6. a3 {[%clk 0:02:59]}  a5 {[%clk 0:02:52]} 7. O-O {[%clk 0:02:59]}  e5 {[%clk 0:02:50]} 8. Nbd2 {[%clk 0:02:54]}  Be7 {[%clk 0:02:46]} 9. Qc2 {[%clk 0:02:48]}  O-O {[%clk 0:02:45]} 10. e3 {[%clk 0:02:46]}  Bf5 {[%clk 0:02:30]} 11. e4 {[%clk 0:02:34]}  Bg4 {[%clk 0:02:28]} 12. h3 {[%clk 0:02:32]}  Bd7 {[%clk 0:02:28]} 13. Rb1 {[%clk 0:02:31]}  Qc8 {[%clk 0:02:26]} 14. Kh2 {[%clk 0:02:30]}  h6 {[%clk 0:02:17]} 15. Ne1 {[%clk 0:02:22]}  Nh7 {[%clk 0:02:14]} 16. f4 {[%clk 0:02:18]}  f5 {[%clk 0:02:12]} 17. exf5 {[%clk 0:02:17]}  Bxf5 {[%clk 0:02:07]} 18. g4 {[%clk 0:02:11]}  Bd7 {[%clk 0:01:52]} 19. Ne4 {[%clk 0:02:07]}  Nf6 {[%clk 0:01:37]} 20. fxe5 {[%clk 0:01:52]}  Nxe5 {[%clk 0:01:33]} 21. Bf4 {[%clk 0:01:51]}  Ng6 {[%clk 0:01:01]} 22. Bg3 {[%clk 0:01:51]}  Bxg4 {[%clk 0:00:53]} 23. Nxf6+ {[%clk 0:01:33]}  Bxf6 {[%clk 0:00:35]} 24. hxg4 {[%clk 0:01:32]}  Qxg4 {[%clk 0:00:36]} 25. Nf3 {[%clk 0:01:19]}  Qh5+ {[%clk 0:00:30]} 26. Bh3 {[%clk 0:01:06]}  Rae8 {[%clk 0:00:27]} 27. Rbe1 {[%clk 0:01:03]}  Rxe1 {[%clk 0:00:24]} 28. Nxe1 {[%clk 0:01:00]}  Re8 {[%clk 0:00:18]} 29. Nf3 {[%clk 0:00:54]}  Bh4 {[%clk 0:00:14]} 30. Qg2 {[%clk 0:00:47]}  Bxg3+ {[%clk 0:00:13]} 31. Qxg3 {[%clk 0:00:47]}  Re2+ {[%clk 0:00:11]} 32. Kg1 {[%clk 0:00:46]}  Rxb2 {[%clk 0:00:07]} 33. Re1 {[%clk 0:00:41]}  Kh7 {[%clk 0:00:07]} 34. Bg4 {[%clk 0:00:29]} 1-0


[Site "https://www.chess.com"]

[Event "Titled Tuesday Blitz March 15 Early 2022"]
[White "Sanchez, Robert"]
[Black "Perez Leiva, Jerzy Jesus"]
[WhiteFideId "2034360"]
[BlackFideId "3524337"]
[WhiteElo "2275"]
[BlackElo "2261"]
[Result "0-1"]
[Round "02"]
[TimeControl "180+1"]
[Date "2022.03.15"]
[WhiteClock "0:01:47"]
[BlackClock "0:00:29"]

1. e4 {[%clk 0:02:54]}  e5 {[%clk 0:02:55]} 2. Nf3 {[%clk 0:02:54]}  Nc6 {[%clk 0:02:54]} 3. Bb5 {[%clk 0:02:54]}  a6 {[%clk 0:02:54]} 4. Ba4 {[%clk 0:02:54]}  Nf6 {[%clk 0:02:54]} 5. d3 {[%clk 0:02:54]}  d6 {[%clk 0:02:51]} 6. c3 {[%clk 0:02:52]}  Bd7 {[%clk 0:02:51]} 7. O-O {[%clk 0:02:51]}  g6 {[%clk 0:02:45]} 8. h3 {[%clk 0:02:50]}  Bg7 {[%clk 0:02:45]} 9. Be3 {[%clk 0:02:50]}  O-O {[%clk 0:02:46]} 10. Qd2 {[%clk 0:02:51]}  Qe8 {[%clk 0:02:45]} 11. Bxc6 {[%clk 0:02:43]}  Bxc6 {[%clk 0:02:45]} 12. Na3 {[%clk 0:02:44]}  Rd8 {[%clk 0:02:45]} 13. Bh6 {[%clk 0:02:44]}  d5 {[%clk 0:02:42]} 14. Bxg7 {[%clk 0:02:43]}  Kxg7 {[%clk 0:02:42]} 15. exd5 {[%clk 0:02:39]}  Bxd5 {[%clk 0:02:42]} 16. Nh4 {[%clk 0:02:38]}  Nh5 {[%clk 0:02:07]} 17. Nc2 {[%clk 0:02:34]}  Qe7 {[%clk 0:02:02]} 18. g3 {[%clk 0:02:29]}  Nf4 {[%clk 0:01:55]} 19. Ne3 {[%clk 0:02:28]}  Kh8 {[%clk 0:01:40]} 20. Kh2 {[%clk 0:02:27]}  Be6 {[%clk 0:01:38]} 21. Ng4 {[%clk 0:02:05]}  Rxd3 {[%clk 0:01:24]} 22. Qe1 {[%clk 0:02:05]}  Bxg4 {[%clk 0:01:05]} 23. hxg4 {[%clk 0:02:06]}  Rfd8 {[%clk 0:00:57]} 24. Qe4 {[%clk 0:02:02]}  Rd2 {[%clk 0:00:46]} 25. Rae1 {[%clk 0:02:01]}  Nd3 {[%clk 0:00:32]} 26. Rd1 {[%clk 0:01:47]}  Nxf2 {[%clk 0:00:29]} 0-1


[Site "https://www.chess.com"]

[Event "Titled Tuesday Blitz March 15 Early 2022"]
[White "Shailendra, K Bajpai"]
[Black "Tanenbaum, Zachary"]
[WhiteFideId "5014670"]
[BlackFideId "2060850"]
[WhiteElo "2242"]
[BlackElo "2168"]
[Result "0-1"]
[Round "02"]
[TimeControl "180+1"]
[Date "2022.03.15"]
[WhiteClock "0:00:01"]
[BlackClock "0:01:00"]

1. e4 {[%clk 0:02:58]}  e5 {[%clk 0:03:00]} 2. Nf3 {[%clk 0:02:58]}  Nc6 {[%clk 0:03:01]} 3. Bb5 {[%clk 0:02:56]}  a6 {[%clk 0:03:01]} 4. Ba4 {[%clk 0:02:56]}  d6 {[%clk 0:03:02]} 5. d4 {[%clk 0:02:52]}  b5 {[%clk 0:03:02]} 6. Bb3 {[%clk 0:02:47]}  Nxd4 {[%clk 0:03:02]} 7. Nxd4 {[%clk 0:02:41]}  exd4 {[%clk 0:03:03]} 8. Qxd4 {[%clk 0:02:41]}  c5 {[%clk 0:03:03]} 9. Qd5 {[%clk 0:02:25]}  Be6 {[%clk 0:03:03]} 10. Qc6+ {[%clk 0:02:24]}  Bd7 {[%clk 0:03:03]} 11. Qd5 {[%clk 0:01:04]}  c4 {[%clk 0:03:03]} 12. Bxc4 {[%clk 0:01:05]}  bxc4 {[%clk 0:03:04]} 13. Qxc4 {[%clk 0:01:05]}  Nf6 {[%clk 0:03:04]} 14. Nc3 {[%clk 0:01:04]}  Be7 {[%clk 0:03:04]} 15. Bg5 {[%clk 0:01:04]}  O-O {[%clk 0:03:03]} 16. O-O {[%clk 0:01:00]}  Qb6 {[%clk 0:03:02]} 17. Rfd1 {[%clk 0:00:44]}  Rac8 {[%clk 0:02:58]} 18. Qb3 {[%clk 0:00:42]}  Qxb3 {[%clk 0:02:21]} 19. axb3 {[%clk 0:00:43]}  h6 {[%clk 0:02:21]} 20. Bxf6 {[%clk 0:00:25]}  Bxf6 {[%clk 0:02:22]} 21. Rxd6 {[%clk 0:00:25]}  Be6 {[%clk 0:02:22]} 22. Rd3 {[%clk 0:00:17]}  Rfd8 {[%clk 0:02:21]} 23. Rad1 {[%clk 0:00:16]}  Rxd3 {[%clk 0:02:20]} 24. Rxd3 {[%clk 0:00:17]}  Kf8 {[%clk 0:02:03]} 25. f4 {[%clk 0:00:15]}  g6 {[%clk 0:01:44]} 26. Kf2 {[%clk 0:00:12]}  Rc7 {[%clk 0:01:32]} 27. g3 {[%clk 0:00:12]}  h5 {[%clk 0:01:31]} 28. h4 {[%clk 0:00:10]}  Be7 {[%clk 0:01:21]} 29. Ke2 {[%clk 0:00:03]}  Bg4+ {[%clk 0:01:20]} 30. Kd2 {[%clk 0:00:04]}  Bb4 {[%clk 0:01:19]} 31. Rd4 {[%clk 0:00:03]}  Bc5 {[%clk 0:01:16]} 32. Rd5 {[%clk 0:00:01]}  Bf2 {[%clk 0:01:16]} 33. Kd3 {[%clk 0:00:01]}  Bxg3 {[%clk 0:01:15]} 34. Rd6 {[%clk 0:00:01]}  Bh3 {[%clk 0:01:09]} 35. Nd5 {[%clk 0:00:01]}  Ra7 {[%clk 0:01:05]} 36. c4 {[%clk 0:00:01]}  Bxh4 {[%clk 0:01:05]} 37. c5 {[%clk 0:00:01]}  Be7 {[%clk 0:01:00]} 0-1


[Site "https://www.chess.com"]

[Event "Titled Tuesday Blitz March 15 Early 2022"]
[White "Shuvalova, Polina"]
[Black "Samunenkov, Ihor"]
[WhiteFideId "24171760"]
[BlackFideId "14187086"]
[WhiteElo "2355"]
[BlackElo "2409"]
[Result "1/2-1/2"]
[Round "02"]
[TimeControl "180+1"]
[Date "2022.03.15"]
[WhiteClock "0:01:03"]
[BlackClock "0:00:12"]

1. d4 {[%clk 0:03:00]}  d5 {[%clk 0:02:58]} 2. Nf3 {[%clk 0:03:01]}  Nf6 {[%clk 0:02:58]} 3. Bf4 {[%clk 0:03:01]}  e6 {[%clk 0:02:57]} 4. e3 {[%clk 0:03:01]}  Bd6 {[%clk 0:02:57]} 5. Bxd6 {[%clk 0:03:00]}  Qxd6 {[%clk 0:02:58]} 6. c4 {[%clk 0:02:59]}  dxc4 {[%clk 0:02:46]} 7. Nc3 {[%clk 0:02:57]}  O-O {[%clk 0:02:14]} 8. Bxc4 {[%clk 0:02:53]}  c5 {[%clk 0:02:07]} 9. O-O {[%clk 0:02:44]}  cxd4 {[%clk 0:02:03]} 10. Qxd4 {[%clk 0:02:44]}  Qxd4 {[%clk 0:01:52]} 11. Nxd4 {[%clk 0:02:43]}  a6 {[%clk 0:01:53]} 12. Rac1 {[%clk 0:02:41]}  b5 {[%clk 0:01:52]} 13. Be2 {[%clk 0:02:39]}  Bb7 {[%clk 0:01:53]} 14. Rfd1 {[%clk 0:02:26]}  Nbd7 {[%clk 0:01:50]} 15. Bf3 {[%clk 0:02:17]}  Bxf3 {[%clk 0:01:49]} 16. Nxf3 {[%clk 0:02:16]}  Rfc8 {[%clk 0:01:46]} 17. a3 {[%clk 0:02:04]}  Nb6 {[%clk 0:01:18]} 18. Ne5 {[%clk 0:01:59]}  Nc4 {[%clk 0:01:16]} 19. Nxc4 {[%clk 0:01:58]}  Rxc4 {[%clk 0:01:17]} 20. Rc2 {[%clk 0:01:34]}  Ne4 {[%clk 0:01:03]} 21. f3 {[%clk 0:01:19]}  Nxc3 {[%clk 0:01:02]} 22. Rxc3 {[%clk 0:01:20]}  Rxc3 {[%clk 0:00:59]} 23. bxc3 {[%clk 0:01:21]}  Kf8 {[%clk 0:00:52]} 24. Rd6 {[%clk 0:01:21]}  Rc8 {[%clk 0:00:27]} 25. Rxa6 {[%clk 0:01:21]}  Rxc3 {[%clk 0:00:27]} 26. Kf2 {[%clk 0:01:19]}  Ke7 {[%clk 0:00:21]} 27. e4 {[%clk 0:01:19]}  e5 {[%clk 0:00:18]} 28. h4 {[%clk 0:01:17]}  h5 {[%clk 0:00:18]} 29. Ke2 {[%clk 0:01:12]}  Rc2+ {[%clk 0:00:18]} 30. Kf1 {[%clk 0:01:09]}  Ra2 {[%clk 0:00:18]} 31. Ra5 {[%clk 0:01:08]}  f6 {[%clk 0:00:15]} 32. Kg1 {[%clk 0:01:06]}  Kf7 {[%clk 0:00:12]} 33. Kh2 {[%clk 0:01:05]}  Kg6 {[%clk 0:00:12]} 34. Kg3 {[%clk 0:01:05]}  Kf7 {[%clk 0:00:12]} 35. Kh3 {[%clk 0:01:04]}  Kg6 {[%clk 0:00:13]} 36. Kg3 {[%clk 0:01:04]}  Kf7 {[%clk 0:00:12]} 37. Ra7+ {[%clk 0:01:04]}  Kg6 {[%clk 0:00:12]} 38. Ra5 {[%clk 0:01:03]} 1/2-1/2


[Site "https://www.chess.com"]

[Event "Titled Tuesday Blitz March 15 Early 2022"]
[White "Szpar, Milosz"]
[Black "Jacobson, Aaron"]
[WhiteFideId "1184989"]
[BlackFideId "2089912"]
[WhiteElo "2447"]
[BlackElo "2265"]
[Result "1-0"]
[Round "02"]
[TimeControl "180+1"]
[Date "2022.03.15"]
[WhiteClock "0:00:07"]
[BlackClock "0:00:01"]

1. e4 {[%clk 0:02:49]}  d5 {[%clk 0:02:58]} 2. exd5 {[%clk 0:02:49]}  Nf6 {[%clk 0:02:58]} 3. Bb5+ {[%clk 0:02:48]}  Nbd7 {[%clk 0:02:59]} 4. Nf3 {[%clk 0:02:39]}  a6 {[%clk 0:02:59]} 5. Be2 {[%clk 0:02:37]}  Nxd5 {[%clk 0:02:59]} 6. d4 {[%clk 0:02:37]}  e6 {[%clk 0:02:58]} 7. O-O {[%clk 0:02:36]}  c5 {[%clk 0:02:58]} 8. c4 {[%clk 0:02:32]}  N5f6 {[%clk 0:02:58]} 9. Nc3 {[%clk 0:02:32]}  cxd4 {[%clk 0:02:58]} 10. Nxd4 {[%clk 0:02:30]}  Bc5 {[%clk 0:02:59]} 11. Be3 {[%clk 0:02:30]}  O-O {[%clk 0:02:58]} 12. Rc1 {[%clk 0:02:27]}  Qc7 {[%clk 0:02:54]} 13. a3 {[%clk 0:02:20]}  Rd8 {[%clk 0:02:48]} 14. b4 {[%clk 0:02:20]}  Bf8 {[%clk 0:02:49]} 15. Qb3 {[%clk 0:02:17]}  b6 {[%clk 0:02:43]} 16. Nc6 {[%clk 0:01:56]}  Re8 {[%clk 0:02:43]} 17. b5 {[%clk 0:01:28]}  Bb7 {[%clk 0:02:43]} 18. Bf3 {[%clk 0:01:25]}  Bc5 {[%clk 0:02:36]} 19. Bg5 {[%clk 0:01:19]}  h6 {[%clk 0:02:35]} 20. Bh4 {[%clk 0:01:19]}  Bd6 {[%clk 0:02:26]} 21. Bg3 {[%clk 0:01:18]}  Bxg3 {[%clk 0:02:26]} 22. hxg3 {[%clk 0:01:17]}  Nc5 {[%clk 0:02:27]} 23. Qb1 {[%clk 0:01:11]}  Nfd7 {[%clk 0:02:06]} 24. Rfd1 {[%clk 0:01:08]}  Nb8 {[%clk 0:02:06]} 25. Nb4 {[%clk 0:00:55]}  Bxf3 {[%clk 0:02:05]} 26. gxf3 {[%clk 0:00:56]}  a5 {[%clk 0:02:03]} 27. Nc2 {[%clk 0:00:54]}  Nbd7 {[%clk 0:02:01]} 28. f4 {[%clk 0:00:53]}  Nf6 {[%clk 0:02:00]} 29. Ne3 {[%clk 0:00:53]}  Red8 {[%clk 0:01:59]} 30. Rxd8+ {[%clk 0:00:52]}  Rxd8 {[%clk 0:02:00]} 31. Rd1 {[%clk 0:00:52]}  Rxd1+ {[%clk 0:01:53]} 32. Qxd1 {[%clk 0:00:53]}  Qe7 {[%clk 0:01:53]} 33. Qf3 {[%clk 0:00:51]}  Ncd7 {[%clk 0:01:53]} 34. Nc2 {[%clk 0:00:33]}  Qc5 {[%clk 0:01:53]} 35. Qd3 {[%clk 0:00:31]}  Ng4 {[%clk 0:01:52]} 36. Ne4 {[%clk 0:00:27]}  Qc7 {[%clk 0:01:52]} 37. Kf1 {[%clk 0:00:20]}  Ngf6 {[%clk 0:01:44]} 38. Nxf6+ {[%clk 0:00:16]}  Nxf6 {[%clk 0:01:45]} 39. Ne3 {[%clk 0:00:16]}  h5 {[%clk 0:01:42]} 40. Qd4 {[%clk 0:00:15]}  Nd7 {[%clk 0:01:39]} 41. Nd1 {[%clk 0:00:12]}  Qb7 {[%clk 0:01:37]} 42. Kg1 {[%clk 0:00:11]}  Nc5 {[%clk 0:01:35]} 43. Nc3 {[%clk 0:00:08]}  Kh7 {[%clk 0:01:10]} 44. Qe3 {[%clk 0:00:08]}  Qd7 {[%clk 0:01:09]} 45. Qe5 {[%clk 0:00:07]}  g6 {[%clk 0:01:02]} 46. Ne4 {[%clk 0:00:08]}  Qd1+ {[%clk 0:00:57]} 47. Kg2 {[%clk 0:00:07]}  Nd3 {[%clk 0:00:52]} 48. Ng5+ {[%clk 0:00:06]}  Kg8 {[%clk 0:00:50]} 49. Qb8+ {[%clk 0:00:06]}  Kg7 {[%clk 0:00:50]} 50. Qc7 {[%clk 0:00:03]}  Ne1+ {[%clk 0:00:47]} 51. Kh2 {[%clk 0:00:04]}  Nf3+ {[%clk 0:00:32]} 52. Nxf3 {[%clk 0:00:04]}  Qxf3 {[%clk 0:00:33]} 53. Qxb6 {[%clk 0:00:04]}  h4 {[%clk 0:00:33]} 54. Qd4+ {[%clk 0:00:04]}  Kg8 {[%clk 0:00:34]} 55. Qd8+ {[%clk 0:00:04]}  Kg7 {[%clk 0:00:34]} 56. Qd4+ {[%clk 0:00:04]}  Kg8 {[%clk 0:00:34]} 57. gxh4 {[%clk 0:00:04]}  Qg4 {[%clk 0:00:30]} 58. b6 {[%clk 0:00:04]}  Qxh4+ {[%clk 0:00:30]} 59. Kg2 {[%clk 0:00:05]}  Qg4+ {[%clk 0:00:31]} 60. Kf1 {[%clk 0:00:06]}  Qh3+ {[%clk 0:00:31]} 61. Ke2 {[%clk 0:00:06]}  Qxa3 {[%clk 0:00:27]} 62. Qd8+ {[%clk 0:00:06]}  Kh7 {[%clk 0:00:25]} 63. Qd4 {[%clk 0:00:05]}  Qa2+ {[%clk 0:00:23]} 64. Kf3 {[%clk 0:00:05]}  Qb3+ {[%clk 0:00:23]} 65. Kg2 {[%clk 0:00:05]}  a4 {[%clk 0:00:23]} 66. c5 {[%clk 0:00:04]}  Qb5 {[%clk 0:00:15]} 67. Qf6 {[%clk 0:00:03]}  Kg8 {[%clk 0:00:12]} 68. Qd8+ {[%clk 0:00:03]}  Kg7 {[%clk 0:00:11]} 69. Qc7 {[%clk 0:00:04]}  a3 {[%clk 0:00:09]} 70. b7 {[%clk 0:00:04]}  a2 {[%clk 0:00:09]} 71. Qe5+ {[%clk 0:00:04]}  Kh7 {[%clk 0:00:08]} 72. b8=Q {[%clk 0:00:04]}  Qxb8 {[%clk 0:00:06]} 73. Qxb8 {[%clk 0:00:05]}  a1=Q {[%clk 0:00:07]} 74. Qe5 {[%clk 0:00:05]}  Qa8+ {[%clk 0:00:06]} 75. Kg3 {[%clk 0:00:05]}  Qh1 {[%clk 0:00:06]} 76. Qc7 {[%clk 0:00:04]}  Qg1+ {[%clk 0:00:06]} 77. Kf3 {[%clk 0:00:04]}  Qd1+ {[%clk 0:00:06]} 78. Ke3 {[%clk 0:00:05]}  Qe1+ {[%clk 0:00:07]} 79. Kd3 {[%clk 0:00:05]}  Qd1+ {[%clk 0:00:07]} 80. Kc4 {[%clk 0:00:05]}  Qa4+ {[%clk 0:00:06]} 81. Kc3 {[%clk 0:00:05]}  Qa3+ {[%clk 0:00:07]} 82. Kd4 {[%clk 0:00:05]}  Qb4+ {[%clk 0:00:06]} 83. Ke5 {[%clk 0:00:05]}  Kg7 {[%clk 0:00:03]} 84. Kd6 {[%clk 0:00:05]}  Qxf4+ {[%clk 0:00:04]} 85. Kd7 {[%clk 0:00:05]}  Qxf2 {[%clk 0:00:02]} 86. Qe5+ {[%clk 0:00:05]}  f6 {[%clk 0:00:02]} 87. Qd6 {[%clk 0:00:06]}  e5 {[%clk 0:00:02]} 88. c6 {[%clk 0:00:06]}  Qa7+ {[%clk 0:00:02]} 89. c7 {[%clk 0:00:07]}  Kh6 {[%clk 0:00:02]} 90. Qxf6 {[%clk 0:00:06]}  e4 {[%clk 0:00:03]} 91. Qh4+ {[%clk 0:00:06]}  Kg7 {[%clk 0:00:03]} 92. Qxe4 {[%clk 0:00:07]}  g5 {[%clk 0:00:03]} 93. Qe5+ {[%clk 0:00:05]}  Kh6 {[%clk 0:00:03]} 94. Qd6+ {[%clk 0:00:05]}  Kh7 {[%clk 0:00:03]} 95. Kd8 {[%clk 0:00:05]}  Qa5 {[%clk 0:00:03]} 96. Ke8 {[%clk 0:00:05]}  Qa8+ {[%clk 0:00:02]} 97. Ke7 {[%clk 0:00:03]}  g4 {[%clk 0:00:02]} 98. Qd7 {[%clk 0:00:02]}  Qa3+ {[%clk 0:00:01]} 99. Kd8+ {[%clk 0:00:02]}  Kg6 {[%clk 0:00:02]} 100. c8=Q {[%clk 0:00:03]}  Qa5+ {[%clk 0:00:02]} 101. Qcc7 {[%clk 0:00:03]}  Qa8+ {[%clk 0:00:02]} 102. Qdc8 {[%clk 0:00:04]}  Qd5+ {[%clk 0:00:03]} 103. Q7d7 {[%clk 0:00:04]}  Qa5+ {[%clk 0:00:02]} 104. Qcc7 {[%clk 0:00:05]}  Qa8+ {[%clk 0:00:03]} 105. Ke7 {[%clk 0:00:05]}  g3 {[%clk 0:00:01]} 106. Qe6+ {[%clk 0:00:06]}  Kh5 {[%clk 0:00:01]} 107. Qce5+ {[%clk 0:00:06]}  Kh4 {[%clk 0:00:01]} 108. Qh6+ {[%clk 0:00:06]}  Kg4 {[%clk 0:00:01]} 109. Qhh5# {[%clk 0:00:07]} 1-0


[Site "https://www.chess.com"]

[Event "Titled Tuesday Blitz March 15 Early 2022"]
[White "Vlassov, Nikolai"]
[Black "Dreev, Aleksey"]
[WhiteFideId "4103360"]
[BlackFideId "4100107"]
[WhiteElo "2407"]
[BlackElo "2625"]
[Result "0-1"]
[Round "02"]
[TimeControl "180+1"]
[Date "2022.03.15"]
[WhiteClock "0:00:05"]
[BlackClock "0:00:08"]

1. e4 {[%clk 0:03:00]}  c5 {[%clk 0:02:59]} 2. c3 {[%clk 0:03:00]}  d5 {[%clk 0:02:56]} 3. exd5 {[%clk 0:03:01]}  Qxd5 {[%clk 0:02:57]} 4. d4 {[%clk 0:03:01]}  Nf6 {[%clk 0:02:57]} 5. Nf3 {[%clk 0:03:01]}  e6 {[%clk 0:02:58]} 6. a3 {[%clk 0:03:01]}  Be7 {[%clk 0:02:53]} 7. Be3 {[%clk 0:03:00]}  cxd4 {[%clk 0:02:49]} 8. cxd4 {[%clk 0:03:01]}  O-O {[%clk 0:02:47]} 9. Nc3 {[%clk 0:03:02]}  Qd6 {[%clk 0:02:48]} 10. Qc2 {[%clk 0:03:03]}  Nc6 {[%clk 0:02:33]} 11. Bd3 {[%clk 0:03:02]}  a6 {[%clk 0:02:23]} 12. O-O {[%clk 0:02:59]}  Rd8 {[%clk 0:02:20]} 13. Rad1 {[%clk 0:02:53]}  Bd7 {[%clk 0:02:18]} 14. Qd2 {[%clk 0:02:52]}  Be8 {[%clk 0:02:16]} 15. Rfe1 {[%clk 0:02:35]}  Rac8 {[%clk 0:02:16]} 16. h3 {[%clk 0:02:30]}  b5 {[%clk 0:02:13]} 17. Bf4 {[%clk 0:02:22]}  Qd7 {[%clk 0:02:13]} 18. Ne5 {[%clk 0:02:22]}  Qb7 {[%clk 0:02:10]} 19. Ne2 {[%clk 0:02:16]}  Nd5 {[%clk 0:01:58]} 20. Bg3 {[%clk 0:02:13]}  Bf6 {[%clk 0:01:58]} 21. Be4 {[%clk 0:02:03]}  Qb6 {[%clk 0:01:50]} 22. Qd3 {[%clk 0:01:55]}  g6 {[%clk 0:01:38]} 23. Qf3 {[%clk 0:01:54]}  Bg7 {[%clk 0:01:35]} 24. Nxc6 {[%clk 0:01:41]}  Bxc6 {[%clk 0:01:31]} 25. Be5 {[%clk 0:01:40]}  Ne7 {[%clk 0:01:17]} 26. Ng3 {[%clk 0:01:29]}  Nf5 {[%clk 0:01:09]} 27. Nxf5 {[%clk 0:01:24]}  exf5 {[%clk 0:01:07]} 28. Bxc6 {[%clk 0:01:23]}  Qxc6 {[%clk 0:01:08]} 29. Qxc6 {[%clk 0:01:11]}  Rxc6 {[%clk 0:01:08]} 30. Bxg7 {[%clk 0:01:11]}  Kxg7 {[%clk 0:01:06]} 31. Rd2 {[%clk 0:01:08]}  Kf6 {[%clk 0:00:48]} 32. f3 {[%clk 0:01:02]}  Rc4 {[%clk 0:00:45]} 33. d5 {[%clk 0:00:44]}  Rd6 {[%clk 0:00:43]} 34. g3 {[%clk 0:00:36]}  h5 {[%clk 0:00:40]} 35. Kf2 {[%clk 0:00:33]}  h4 {[%clk 0:00:40]} 36. gxh4 {[%clk 0:00:26]}  Rxh4 {[%clk 0:00:39]} 37. Kg3 {[%clk 0:00:26]}  g5 {[%clk 0:00:29]} 38. Rc1 {[%clk 0:00:23]}  f4+ {[%clk 0:00:26]} 39. Kg2 {[%clk 0:00:23]}  Rh8 {[%clk 0:00:25]} 40. Rc6 {[%clk 0:00:20]}  Rd8 {[%clk 0:00:25]} 41. Rd4 {[%clk 0:00:16]}  Ke5 {[%clk 0:00:22]} 42. Rxd6 {[%clk 0:00:16]}  Rxd6 {[%clk 0:00:22]} 43. Re4+ {[%clk 0:00:16]}  Kxd5 {[%clk 0:00:21]} 44. h4 {[%clk 0:00:17]}  f6 {[%clk 0:00:21]} 45. hxg5 {[%clk 0:00:16]}  fxg5 {[%clk 0:00:21]} 46. Kh3 {[%clk 0:00:17]}  Re6 {[%clk 0:00:17]} 47. Rb4 {[%clk 0:00:14]}  Re2 {[%clk 0:00:16]} 48. Kg4 {[%clk 0:00:14]}  Rg2+ {[%clk 0:00:16]} 49. Kf5 {[%clk 0:00:15]}  Kc5 {[%clk 0:00:16]} 50. Rb3 {[%clk 0:00:14]}  Kb6 {[%clk 0:00:14]} 51. a4 {[%clk 0:00:14]}  Ka5 {[%clk 0:00:15]} 52. axb5 {[%clk 0:00:14]}  axb5 {[%clk 0:00:15]} 53. Ra3+ {[%clk 0:00:04]}  Kb4 {[%clk 0:00:15]} 54. Ra8 {[%clk 0:00:03]}  Kb3 {[%clk 0:00:14]} 55. Rb8 {[%clk 0:00:03]}  b4 {[%clk 0:00:14]} 56. Rb7 {[%clk 0:00:03]}  Rf2 {[%clk 0:00:13]} 57. Kxg5 {[%clk 0:00:03]}  Rxf3 {[%clk 0:00:13]} 58. Kg4 {[%clk 0:00:04]}  Rf2 {[%clk 0:00:14]} 59. Rb8 {[%clk 0:00:04]}  Rxb2 {[%clk 0:00:09]} 60. Kxf4 {[%clk 0:00:04]}  Rd2 {[%clk 0:00:10]} 61. Ke3 {[%clk 0:00:04]}  Rd6 {[%clk 0:00:09]} 62. Ke2 {[%clk 0:00:05]}  Kc3 {[%clk 0:00:09]} 63. Rb6 {[%clk 0:00:05]}  Rxb6 {[%clk 0:00:08]} 0-1


[Site "https://www.chess.com"]